[Event "Late-Titled-Tuesday-Blitz-March-12-2024"]
[Site "Chess.com"]
[Date "2024.03.12"]
[Round "1"]
[White "prochn"]
[Black "oskariot"]
[Result "0-1"]
[WhiteElo "2428"]
[BlackElo "2760"]
[TimeControl "180+1"]
[EndTime "14:07:09 PDT"]
[Termination "oskariot won on time"]

1. d4 {[%clk 0:02:56.6]} 1... Nf6 {[%clk 0:02:59.8]} 2. c4 {[%clk 0:02:56.5]}
2... c5 {[%clk 0:03:00.3]} 3. d5 {[%clk 0:02:56.4]} 3... g6 {[%clk 0:03:01]} 4.
g3 {[%clk 0:02:54.5]} 4... Bg7 {[%clk 0:03:01]} 5. Bg2 {[%clk 0:02:54.1]} 5...
d6 {[%clk 0:03:01.6]} 6. Nc3 {[%clk 0:02:51.5]} 6... O-O {[%clk 0:03:01.2]} 7.
Nf3 {[%clk 0:02:51.6]} 7... Na6 {[%clk 0:02:52.1]} 8. O-O {[%clk 0:02:50.5]}
8... Nc7 {[%clk 0:02:52.6]} 9. e4 {[%clk 0:02:45.4]} 9... Bg4 {[%clk 0:02:52.6]}
10. h3 {[%clk 0:02:39.2]} 10... Bxf3 {[%clk 0:02:52.8]} 11. Bxf3 {[%clk
0:02:40.1]} 11... Nd7 {[%clk 0:02:53.2]} 12. Qc2 {[%clk 0:02:25.2]} 12... b5
{[%clk 0:02:41.9]} 13. cxb5 {[%clk 0:02:21.7]} 13... a6 {[%clk 0:02:42.4]} 14.
bxa6 {[%clk 0:02:12.3]} 14... Nxa6 {[%clk 0:02:43.3]} 15. Be2 {[%clk 0:01:52]}
15... Qa5 {[%clk 0:02:40.1]} 16. Bd2 {[%clk 0:01:48.5]} 16... Nc7 {[%clk
0:02:28.4]} 17. a4 {[%clk 0:01:42.1]} 17... Qb6 {[%clk 0:02:13.3]} 18. b3 {[%clk
0:01:35.8]} 18... Rfb8 {[%clk 0:02:06.9]} 19. Ra3 {[%clk 0:01:28.8]} 19... Na6
{[%clk 0:01:56]} 20. Nb5 {[%clk 0:01:25.9]} 20... Nb4 {[%clk 0:01:56.2]} 21. Qc1
{[%clk 0:01:04]} 21... Ne5 {[%clk 0:01:45.7]} 22. Kh2 {[%clk 0:00:55.6]} 22...
Rc8 {[%clk 0:01:40.5]} 23. f4 {[%clk 0:00:52.4]} 23... Nd7 {[%clk 0:01:30]} 24.
Bc4 {[%clk 0:00:50.3]} 24... Qd8 {[%clk 0:01:17.7]} 25. Bc3 {[%clk 0:00:49.1]}
25... Qf8 {[%clk 0:01:16.9]} 26. Qb2 {[%clk 0:00:45.9]} 26... Nb6 {[%clk
0:01:12.8]} 27. a5 {[%clk 0:00:24.2]} 27... Nd7 {[%clk 0:01:03.8]} 28. e5 {[%clk
0:00:21.2]} 28... Rcb8 {[%clk 0:00:53.6]} 29. Raa1 {[%clk 0:00:15.3]} 29... h5
{[%clk 0:00:46.3]} 30. h4 {[%clk 0:00:14]} 30... Kh7 {[%clk 0:00:37.3]} 31. Rfe1
{[%clk 0:00:13.6]} 31... Rb7 {[%clk 0:00:36.5]} 32. Rf1 {[%clk 0:00:02.5]} 32...
Na6 {[%clk 0:00:31]} 33. Qe2 {[%clk 0:00:02.1]} 33... Qh8 {[%clk 0:00:27.5]} 0-1

[Event "Late-Titled-Tuesday-Blitz-March-12-2024"]
[Site "Chess.com"]
[Date "2024.03.12"]
[Round "1"]
[White "matagordo"]
[Black "rynos0411"]
[Result "1-0"]
[WhiteElo "2301"]
[BlackElo "2621"]
[TimeControl "180+1"]
[EndTime "14:07:10 PDT"]
[Termination "matagordo won on time"]

1. d4 {[%clk 0:03:00.9]} 1... Nf6 {[%clk 0:02:58.9]} 2. Bf4 {[%clk 0:03:01.5]}
2... e6 {[%clk 0:02:57.6]} 3. e3 {[%clk 0:03:01.4]} 3... b6 {[%clk 0:02:58.1]}
4. Qf3 {[%clk 0:03:00.5]} 4... Nc6 {[%clk 0:02:53.6]} 5. Nc3 {[%clk 0:02:58]}
5... Bb7 {[%clk 0:02:53.5]} 6. Bd3 {[%clk 0:02:54]} 6... Be7 {[%clk 0:02:46.8]}
7. Nge2 {[%clk 0:02:53.9]} 7... Rb8 {[%clk 0:02:45.9]} 8. e4 {[%clk 0:02:50.4]}
8... d6 {[%clk 0:02:44.8]} 9. Rg1 {[%clk 0:02:50.2]} 9... e5 {[%clk 0:02:43.5]}
10. dxe5 {[%clk 0:02:47.2]} 10... Nxe5 {[%clk 0:02:43.4]} 11. Bxe5 {[%clk
0:02:46.9]} 11... dxe5 {[%clk 0:02:43.2]} 12. O-O-O {[%clk 0:02:46.4]} 12... O-O
{[%clk 0:02:34.7]} 13. g4 {[%clk 0:02:30.5]} 13... Nd7 {[%clk 0:02:32.2]} 14.
Nd5 {[%clk 0:02:15.8]} 14... Bg5+ {[%clk 0:02:25.8]} 15. Kb1 {[%clk 0:02:15.4]}
15... Nc5 {[%clk 0:02:26.4]} 16. Ng3 {[%clk 0:01:58.3]} 16... c6 {[%clk
0:02:06.9]} 17. Ne3 {[%clk 0:01:57.2]} 17... Qf6 {[%clk 0:02:04.4]} 18. Qe2
{[%clk 0:01:48.6]} 18... Ne6 {[%clk 0:02:03]} 19. Ngf5 {[%clk 0:01:27.4]} 19...
Rbd8 {[%clk 0:01:54.3]} 20. h4 {[%clk 0:01:14.1]} 20... Bxh4 {[%clk 0:01:50.8]}
21. g5 {[%clk 0:01:14.4]} 21... Nxg5 {[%clk 0:01:28]} 22. Qg4 {[%clk 0:01:07]}
22... Bxf2 {[%clk 0:01:13.6]} 23. Rg2 {[%clk 0:00:39.6]} 23... g6 {[%clk
0:01:14.4]} 24. Rxf2 {[%clk 0:00:32.9]} 24... Kh8 {[%clk 0:00:49.8]} 25. Rg1
{[%clk 0:00:28.8]} 25... Ne6 {[%clk 0:00:47.2]} 26. Rh2 {[%clk 0:00:06.9]} 26...
Nf4 {[%clk 0:00:10.3]} 27. Rgh1 {[%clk 0:00:06.2]} 27... h5 {[%clk 0:00:05.2]}
28. Qg1 {[%clk 0:00:05.7]} 28... Bc8 {[%clk 0:00:02.6]} 29. Ng3 {[%clk
0:00:02.6]} 1-0

[Event "Late-Titled-Tuesday-Blitz-March-12-2024"]
[Site "Chess.com"]
[Date "2024.03.12"]
[Round "1"]
[White "chucksterf10"]
[Black "dropstoneDP"]
[Result "0-1"]
[WhiteElo "2539"]
[BlackElo "3000"]
[TimeControl "180+1"]
[EndTime "14:07:13 PDT"]
[Termination "dropstoneDP won on time"]

1. Nf3 {[%clk 0:02:27]} 1... Nf6 {[%clk 0:02:53.7]} 2. c4 {[%clk 0:02:26.8]}
2... c5 {[%clk 0:02:49.4]} 3. b3 {[%clk 0:02:24.1]} 3... d5 {[%clk 0:02:47.8]}
4. cxd5 {[%clk 0:02:24.1]} 4... Nxd5 {[%clk 0:02:46.9]} 5. Bb2 {[%clk
0:02:24.5]} 5... Nc6 {[%clk 0:02:44.1]} 6. g3 {[%clk 0:02:24.1]} 6... f6 {[%clk
0:02:41.8]} 7. d4 {[%clk 0:02:20.8]} 7... cxd4 {[%clk 0:02:39.7]} 8. Nxd4 {[%clk
0:02:21.4]} 8... Nxd4 {[%clk 0:02:34.3]} 9. Qxd4 {[%clk 0:02:21.1]} 9... e5
{[%clk 0:02:33.2]} 10. Qd2 {[%clk 0:02:01]} 10... Bb4 {[%clk 0:02:31.9]} 11. Nc3
{[%clk 0:02:01.2]} 11... Be6 {[%clk 0:02:27.8]} 12. a3 {[%clk 0:01:53.4]} 12...
Bxc3 {[%clk 0:02:24.9]} 13. Bxc3 {[%clk 0:01:53.1]} 13... Nxc3 {[%clk
0:02:24.1]} 14. Qxc3 {[%clk 0:01:52.7]} 14... Rc8 {[%clk 0:02:24.5]} 15. Qb4
{[%clk 0:01:44.1]} 15... Qd5 {[%clk 0:02:12.6]} 16. e4 {[%clk 0:01:38.7]} 16...
Qxb3 {[%clk 0:02:09]} 17. Bb5+ {[%clk 0:00:40.6]} 17... Kf7 {[%clk 0:01:59.2]}
18. Qxb3 {[%clk 0:00:34.8]} 18... Bxb3 {[%clk 0:02:00.1]} 19. O-O {[%clk
0:00:32.2]} 19... Rhd8 {[%clk 0:01:52.4]} 20. Rfc1 {[%clk 0:00:27]} 20... Be6
{[%clk 0:01:44.7]} 21. f3 {[%clk 0:00:15.4]} 21... Ke7 {[%clk 0:01:39.6]} 22.
Be2 {[%clk 0:00:11.7]} 22... Rd2 {[%clk 0:01:23.7]} 23. Kf1 {[%clk 0:00:11.9]}
23... Rcc2 {[%clk 0:01:14.5]} 24. Rxc2 {[%clk 0:00:10.9]} 24... Rxc2 {[%clk
0:01:11.2]} 25. Rb1 {[%clk 0:00:10]} 25... b6 {[%clk 0:01:07.5]} 26. Rb4 {[%clk
0:00:10.5]} 26... Rc5 {[%clk 0:00:59.6]} 27. Kf2 {[%clk 0:00:07]} 27... Bd7
{[%clk 0:00:57.4]} 28. Rb3 {[%clk 0:00:03.8]} 28... g5 {[%clk 0:00:55.9]} 29.
Ke3 {[%clk 0:00:03.8]} 29... Rc2 {[%clk 0:00:53.6]} 30. f4 {[%clk 0:00:04]}
30... gxf4+ {[%clk 0:00:28.7]} 31. gxf4 {[%clk 0:00:04.9]} 31... exf4+ {[%clk
0:00:29.5]} 32. Kf3 {[%clk 0:00:05.5]} 32... h5 {[%clk 0:00:24.1]} 33. Ba6
{[%clk 0:00:02.2]} 33... Rxh2 {[%clk 0:00:22.8]} 34. Kxf4 {[%clk 0:00:02.5]}
34... Rh4+ {[%clk 0:00:23]} 0-1

[Event "Late-Titled-Tuesday-Blitz-March-12-2024"]
[Site "Chess.com"]
[Date "2024.03.12"]
[Round "1"]
[White "Mikhail_Golubev"]
[Black "Fore_Man"]
[Result "1-0"]
[WhiteElo "2671"]
[BlackElo "2324"]
[TimeControl "180+1"]
[EndTime "14:07:13 PDT"]
[Termination "Mikhail_Golubev won by checkmate"]

1. e4 {[%clk 0:03:00.9]} 1... c5 {[%clk 0:02:50.3]} 2. Nf3 {[%clk 0:03:00.2]}
2... d6 {[%clk 0:02:50.4]} 3. d4 {[%clk 0:03:00.1]} 3... cxd4 {[%clk 0:02:51.3]}
4. Nxd4 {[%clk 0:03:00.3]} 4... Nf6 {[%clk 0:02:51.9]} 5. Nc3 {[%clk 0:03:00.7]}
5... a6 {[%clk 0:02:52.1]} 6. Bc4 {[%clk 0:03:00.7]} 6... e6 {[%clk 0:02:51.4]}
7. O-O {[%clk 0:03:01.1]} 7... b5 {[%clk 0:02:50.6]} 8. Bb3 {[%clk 0:03:00.6]}
8... Be7 {[%clk 0:02:50.5]} 9. Qf3 {[%clk 0:03:00.5]} 9... Qc7 {[%clk
0:02:48.4]} 10. Qg3 {[%clk 0:02:57.7]} 10... O-O {[%clk 0:02:43.1]} 11. Bh6
{[%clk 0:02:56.5]} 11... Ne8 {[%clk 0:02:42.6]} 12. Rad1 {[%clk 0:02:55.1]}
12... Kh8 {[%clk 0:02:35.6]} 13. Bg5 {[%clk 0:02:51.2]} 13... Nf6 {[%clk
0:02:24.3]} 14. Qh4 {[%clk 0:02:46]} 14... b4 {[%clk 0:01:47.5]} 15. Nce2 {[%clk
0:02:45.5]} 15... Bb7 {[%clk 0:01:39.5]} 16. Nf4 {[%clk 0:02:24.6]} 16... Nc6
{[%clk 0:00:56.3]} 17. Ndxe6 {[%clk 0:01:15.4]} 17... fxe6 {[%clk 0:00:51]} 18.
Ng6+ {[%clk 0:00:47.1]} 18... Kg8 {[%clk 0:00:50.8]} 19. Nxf8 {[%clk 0:00:45.9]}
19... Rxf8 {[%clk 0:00:44.9]} 20. Bxe6+ {[%clk 0:00:45.1]} 20... Kh8 {[%clk
0:00:44.3]} 21. Rd3 {[%clk 0:00:42.7]} 21... Ne5 {[%clk 0:00:37.9]} 22. Rh3
{[%clk 0:00:08.8]} 22... Ng6 {[%clk 0:00:38.1]} 23. Qg3 {[%clk 0:00:09]} 23...
Nxe4 {[%clk 0:00:08.8]} 24. Rxh7+ {[%clk 0:00:08]} 24... Kxh7 {[%clk 0:00:09.7]}
25. Qh3+ {[%clk 0:00:08.5]} 25... Nh4 {[%clk 0:00:10.3]} 26. Qxh4+ {[%clk
0:00:08]} 26... Kg6 {[%clk 0:00:10.9]} 27. Bxe7 {[%clk 0:00:08.2]} 27... Re8
{[%clk 0:00:10.2]} 28. Qg4+ {[%clk 0:00:07]} 28... Kh6 {[%clk 0:00:05]} 29. Bf7
{[%clk 0:00:04.8]} 29... Nf6 {[%clk 0:00:02]} 30. Qg6# {[%clk 0:00:04.7]} 1-0

[Event "Late-Titled-Tuesday-Blitz-March-12-2024"]
[Site "Chess.com"]
[Date "2024.03.12"]
[Round "1"]
[White "The_Straightforward_Rook"]
[Black "ameetghasi100"]
[Result "0-1"]
[WhiteElo "2459"]
[BlackElo "2811"]
[TimeControl "180+1"]
[EndTime "14:07:14 PDT"]
[Termination "ameetghasi100 won by resignation"]

1. d4 {[%clk 0:03:00.2]} 1... d6 {[%clk 0:02:59.3]} 2. c4 {[%clk 0:02:58.8]}
2... g6 {[%clk 0:03:00.2]} 3. Nc3 {[%clk 0:02:56.9]} 3... Bg7 {[%clk 0:03:00.6]}
4. e4 {[%clk 0:02:54.5]} 4... Nf6 {[%clk 0:03:01.1]} 5. Be2 {[%clk 0:02:52.8]}
5... O-O {[%clk 0:03:01.6]} 6. h4 {[%clk 0:02:53]} 6... Nc6 {[%clk 0:02:59.5]}
7. h5 {[%clk 0:02:50.7]} 7... e5 {[%clk 0:02:58.4]} 8. d5 {[%clk 0:02:42.1]}
8... Nd4 {[%clk 0:02:58.2]} 9. Nf3 {[%clk 0:02:42.6]} 9... Nxe2 {[%clk 0:02:57]}
10. Qxe2 {[%clk 0:02:41.4]} 10... Bg4 {[%clk 0:02:57.3]} 11. h6 {[%clk
0:02:38.4]} 11... Bh8 {[%clk 0:02:57.2]} 12. Bg5 {[%clk 0:02:39.1]} 12... Qe8
{[%clk 0:02:53.7]} 13. Qc2 {[%clk 0:02:26.9]} 13... Bd7 {[%clk 0:02:47.7]} 14.
Nd2 {[%clk 0:02:19.9]} 14... Nh5 {[%clk 0:02:44.4]} 15. O-O-O {[%clk 0:02:08.3]}
15... a6 {[%clk 0:02:43.1]} 16. g4 {[%clk 0:02:04]} 16... Nf4 {[%clk 0:02:42.9]}
17. f3 {[%clk 0:01:44.3]} 17... b5 {[%clk 0:02:41.6]} 18. Rde1 {[%clk
0:01:31.3]} 18... c6 {[%clk 0:02:36.6]} 19. dxc6 {[%clk 0:01:24.5]} 19... Bxc6
{[%clk 0:02:37.5]} 20. Nd5 {[%clk 0:01:25]} 20... Nxd5 {[%clk 0:02:34.5]} 21.
cxd5 {[%clk 0:01:24.4]} 21... Bxd5 {[%clk 0:02:30.2]} 22. Kb1 {[%clk 0:01:22.8]}
22... Be6 {[%clk 0:02:28.7]} 23. Qd3 {[%clk 0:01:20.8]} 23... f6 {[%clk
0:02:22.8]} 24. Be3 {[%clk 0:01:20.3]} 24... Qf7 {[%clk 0:02:19.2]} 25. a3
{[%clk 0:01:15.3]} 25... d5 {[%clk 0:02:19.5]} 26. Bc5 {[%clk 0:01:10.8]} 26...
Rfd8 {[%clk 0:02:19.4]} 27. Qc3 {[%clk 0:00:57.2]} 27... Rac8 {[%clk 0:02:18.2]}
28. Qb4 {[%clk 0:00:53.6]} 28... d4 {[%clk 0:01:47.6]} 29. Rc1 {[%clk
0:00:53.1]} 29... Qd7 {[%clk 0:01:35.8]} 30. Bb6 {[%clk 0:00:49.5]} 30... Re8
{[%clk 0:01:34.8]} 31. Qa5 {[%clk 0:00:44.3]} 31... Qb7 {[%clk 0:01:33.5]} 32.
Rc5 {[%clk 0:00:37.7]} 32... Rxc5 {[%clk 0:01:25.8]} 33. Bxc5 {[%clk 0:00:38.6]}
33... f5 {[%clk 0:01:20.9]} 34. gxf5 {[%clk 0:00:37.7]} 34... gxf5 {[%clk
0:01:21.8]} 35. Rc1 {[%clk 0:00:19.9]} 35... Bf6 {[%clk 0:01:20.9]} 36. Bd6
{[%clk 0:00:17.6]} 36... Rc8 {[%clk 0:01:01.5]} 37. Rg1+ {[%clk 0:00:17.5]}
37... Kf7 {[%clk 0:00:55.1]} 38. Qb4 {[%clk 0:00:17.3]} 38... Qc6 {[%clk
0:00:52.7]} 39. Nb3 {[%clk 0:00:09.8]} 39... Qc2+ {[%clk 0:00:51.8]} 40. Ka2
{[%clk 0:00:10.2]} 40... f4 {[%clk 0:00:38.4]} 41. Be7 {[%clk 0:00:07.3]} 41...
Qxb3+ {[%clk 0:00:35.7]} 42. Qxb3 {[%clk 0:00:07.6]} 42... Bxb3+ {[%clk
0:00:36.6]} 43. Kxb3 {[%clk 0:00:08.5]} 43... Kxe7 {[%clk 0:00:37.2]} 44. Rg7+
{[%clk 0:00:09.2]} 44... Bxg7 {[%clk 0:00:37.3]} 0-1

[Event "Late-Titled-Tuesday-Blitz-March-12-2024"]
[Site "Chess.com"]
[Date "2024.03.12"]
[Round "1"]
[White "HanSchut"]
[Black "GothamChess"]
[Result "0-1"]
[WhiteElo "2339"]
[BlackElo "2689"]
[TimeControl "180+1"]
[EndTime "14:07:15 PDT"]
[Termination "GothamChess won by resignation"]

1. e4 {[%clk 0:02:59.5]} 1... d5 {[%clk 0:02:59.1]} 2. exd5 {[%clk 0:02:56.8]}
2... Qxd5 {[%clk 0:03:00]} 3. Nc3 {[%clk 0:02:57]} 3... Qa5 {[%clk 0:02:57.8]}
4. d4 {[%clk 0:02:56.7]} 4... Nf6 {[%clk 0:02:57.4]} 5. Bd2 {[%clk 0:02:56.4]}
5... Bg4 {[%clk 0:02:57.1]} 6. f3 {[%clk 0:02:56.5]} 6... Bd7 {[%clk 0:02:56.8]}
7. Bc4 {[%clk 0:02:56.5]} 7... Qb6 {[%clk 0:02:49.3]} 8. Qe2 {[%clk 0:02:52.1]}
8... Nc6 {[%clk 0:02:31.5]} 9. O-O-O {[%clk 0:02:37.5]} 9... Nxd4 {[%clk
0:02:30.5]} 10. Qe1 {[%clk 0:02:26.4]} 10... Bf5 {[%clk 0:02:10.4]} 11. Be3
{[%clk 0:02:16.2]} 11... O-O-O {[%clk 0:01:54]} 12. Nge2 {[%clk 0:01:36.6]}
12... Nb3+ {[%clk 0:01:49.8]} 13. Bxb3 {[%clk 0:01:33.3]} 13... Qxe3+ {[%clk
0:01:49.7]} 14. Kb1 {[%clk 0:01:34]} 14... Rxd1+ {[%clk 0:01:43.1]} 15. Nxd1
{[%clk 0:01:26.8]} 15... Qb6 {[%clk 0:01:36.9]} 16. Bxf7 {[%clk 0:01:23.9]}
16... e5 {[%clk 0:01:31.4]} 17. Ng3 {[%clk 0:01:20.8]} 17... Be6 {[%clk
0:01:24.3]} 18. Bxe6+ {[%clk 0:01:12.5]} 18... Qxe6 {[%clk 0:01:25.2]} 19. Nc3
{[%clk 0:01:10.6]} 19... Bb4 {[%clk 0:01:21.5]} 20. Qe3 {[%clk 0:01:10.6]} 20...
Kb8 {[%clk 0:01:17.6]} 21. a3 {[%clk 0:01:10.1]} 21... Ba5 {[%clk 0:01:17.3]}
22. Rd1 {[%clk 0:01:01.4]} 22... Bb6 {[%clk 0:01:15.5]} 23. Qd3 {[%clk
0:00:59.3]} 23... a6 {[%clk 0:01:15.8]} 24. Nge4 {[%clk 0:00:54.2]} 24... Rg8
{[%clk 0:01:05.6]} 25. Nd5 {[%clk 0:00:50.6]} 25... Rd8 {[%clk 0:00:59.4]} 26.
c4 {[%clk 0:00:37.7]} 26... c6 {[%clk 0:00:55.1]} 27. Ng5 {[%clk 0:00:30.1]}
27... Qe8 {[%clk 0:00:28.5]} 28. Qb3 {[%clk 0:00:27.5]} 28... cxd5 {[%clk
0:00:25.5]} 29. Qxb6 {[%clk 0:00:26.8]} 29... Qg6+ {[%clk 0:00:18.9]} 30. Ka2
{[%clk 0:00:21.4]} 30... Rc8 {[%clk 0:00:16.5]} 31. Ne6 {[%clk 0:00:18.9]} 31...
Qc2 {[%clk 0:00:14.8]} 32. Qd6+ {[%clk 0:00:16.1]} 32... Ka7 {[%clk 0:00:14.9]}
33. Rb1 {[%clk 0:00:08.3]} 33... Qxc4+ {[%clk 0:00:14.1]} 34. Ka1 {[%clk
0:00:09.2]} 34... e4 {[%clk 0:00:10.3]} 35. fxe4 {[%clk 0:00:07]} 35... Nxe4
{[%clk 0:00:11.2]} 36. Nxg7 {[%clk 0:00:05.5]} 36... Nxd6 {[%clk 0:00:11.2]} 0-1

[Event "Late-Titled-Tuesday-Blitz-March-12-2024"]
[Site "Chess.com"]
[Date "2024.03.12"]
[Round "1"]
[White "RandomNoob04"]
[Black "chessamical"]
[Result "1-0"]
[WhiteElo "2611"]
[BlackElo "2219"]
[TimeControl "180+1"]
[EndTime "14:07:16 PDT"]
[Termination "RandomNoob04 won on time"]

1. e4 {[%clk 0:03:00.9]} 1... e6 {[%clk 0:02:58.3]} 2. d4 {[%clk 0:03:01.2]}
2... d5 {[%clk 0:02:57.8]} 3. e5 {[%clk 0:03:01.9]} 3... c5 {[%clk 0:02:57.3]}
4. c3 {[%clk 0:03:02.6]} 4... Nc6 {[%clk 0:02:56.9]} 5. Nf3 {[%clk 0:03:03.3]}
5... Qb6 {[%clk 0:02:56.6]} 6. Bd3 {[%clk 0:03:02.6]} 6... Bd7 {[%clk
0:02:56.4]} 7. O-O {[%clk 0:03:02.3]} 7... cxd4 {[%clk 0:02:56.5]} 8. cxd4
{[%clk 0:03:03.2]} 8... Nxd4 {[%clk 0:02:56]} 9. Nxd4 {[%clk 0:03:04.1]} 9...
Qxd4 {[%clk 0:02:55.8]} 10. Nc3 {[%clk 0:03:05]} 10... a6 {[%clk 0:02:50.2]} 11.
Qe2 {[%clk 0:03:05.1]} 11... Rc8 {[%clk 0:02:50.5]} 12. Kh1 {[%clk 0:02:59.8]}
12... Bc5 {[%clk 0:02:49.4]} 13. Bg5 {[%clk 0:02:55.6]} 13... h6 {[%clk
0:02:42.7]} 14. Bd2 {[%clk 0:02:55.9]} 14... Ne7 {[%clk 0:02:41.5]} 15. f4
{[%clk 0:02:56.5]} 15... g5 {[%clk 0:02:15.5]} 16. fxg5 {[%clk 0:02:26]} 16...
hxg5 {[%clk 0:02:14]} 17. Bxg5 {[%clk 0:02:26.9]} 17... Nc6 {[%clk 0:01:26]} 18.
Rae1 {[%clk 0:02:07.9]} 18... Be7 {[%clk 0:01:07.8]} 19. Bxe7 {[%clk 0:02:00.8]}
19... Kxe7 {[%clk 0:01:02.5]} 20. h3 {[%clk 0:01:43.5]} 20... Rcg8 {[%clk
0:00:50]} 21. Qf3 {[%clk 0:01:41.4]} 21... Be8 {[%clk 0:00:49.8]} 22. Rd1 {[%clk
0:01:22.3]} 22... Qh4 {[%clk 0:00:36.2]} 23. Qf6+ {[%clk 0:00:41.4]} 23... Kd7
{[%clk 0:00:32.1]} 24. Qxh4 {[%clk 0:00:33.7]} 24... Rxh4 {[%clk 0:00:31.3]} 25.
Rde1 {[%clk 0:00:30.5]} 25... Rg5 {[%clk 0:00:30.2]} 26. Kh2 {[%clk 0:00:20]}
26... Nxe5 {[%clk 0:00:20.5]} 27. Be2 {[%clk 0:00:18.8]} 27... Ng6 {[%clk
0:00:10.8]} 28. g3 {[%clk 0:00:18.6]} 28... Rb4 {[%clk 0:00:09.9]} 29. h4 {[%clk
0:00:18.1]} 29... Re5 {[%clk 0:00:07.9]} 30. b3 {[%clk 0:00:17.3]} 30... Re3
{[%clk 0:00:06.2]} 31. Nd1 {[%clk 0:00:15.2]} 31... Ree4 {[%clk 0:00:03.7]} 32.
Bh5 {[%clk 0:00:13.1]} 32... Ne5 {[%clk 0:00:02.5]} 33. Nc3 {[%clk 0:00:09.2]}
33... Rxe1 {[%clk 0:00:01.8]} 34. Rxe1 {[%clk 0:00:10.1]} 34... Nd3 {[%clk
0:00:01.4]} 35. Re2 {[%clk 0:00:09.8]} 1-0

[Event "Late-Titled-Tuesday-Blitz-March-12-2024"]
[Site "Chess.com"]
[Date "2024.03.12"]
[Round "1"]
[White "Kostukov_Alex"]
[Black "DryCounty"]
[Result "1-0"]
[WhiteElo "2316"]
[BlackElo "2628"]
[TimeControl "180+1"]
[EndTime "14:07:17 PDT"]
[Termination "Kostukov_Alex won by resignation"]

1. g3 {[%clk 0:02:47.6]} 1... g6 {[%clk 0:02:58.9]} 2. Bg2 {[%clk 0:02:47]} 2...
Bg7 {[%clk 0:02:59.3]} 3. c4 {[%clk 0:02:45.8]} 3... Nf6 {[%clk 0:02:59.4]} 4.
Nf3 {[%clk 0:02:44.3]} 4... O-O {[%clk 0:02:59.6]} 5. O-O {[%clk 0:02:43.5]}
5... d6 {[%clk 0:03:00]} 6. d4 {[%clk 0:02:41.7]} 6... Nc6 {[%clk 0:03:00.2]} 7.
Nc3 {[%clk 0:02:34]} 7... e5 {[%clk 0:02:59.9]} 8. d5 {[%clk 0:02:29]} 8... Nb8
{[%clk 0:02:59.1]} 9. e4 {[%clk 0:02:29.3]} 9... a5 {[%clk 0:02:59]} 10. h3
{[%clk 0:02:21.8]} 10... Na6 {[%clk 0:02:57.4]} 11. Be3 {[%clk 0:02:18.3]} 11...
b6 {[%clk 0:02:51]} 12. Ne1 {[%clk 0:01:59.5]} 12... Nc5 {[%clk 0:02:50]} 13.
Nd3 {[%clk 0:01:56.8]} 13... Nh5 {[%clk 0:02:43.9]} 14. Nb5 {[%clk 0:01:34.1]}
14... Nxd3 {[%clk 0:02:18.1]} 15. Qxd3 {[%clk 0:01:33.3]} 15... f5 {[%clk
0:02:18.7]} 16. Bd2 {[%clk 0:01:13]} 16... Qe7 {[%clk 0:02:01.4]} 17. Rae1
{[%clk 0:00:59.4]} 17... Nf6 {[%clk 0:01:50.7]} 18. Kh2 {[%clk 0:00:48.9]} 18...
fxe4 {[%clk 0:01:48.4]} 19. Qc2 {[%clk 0:00:41.1]} 19... Bf5 {[%clk 0:01:41.7]}
20. Be3 {[%clk 0:00:39.7]} 20... h5 {[%clk 0:01:39.2]} 21. Nc3 {[%clk
0:00:37.9]} 21... Qd7 {[%clk 0:01:33.1]} 22. Qe2 {[%clk 0:00:29.7]} 22... Rae8
{[%clk 0:01:22.9]} 23. Bg5 {[%clk 0:00:27.1]} 23... Nh7 {[%clk 0:01:21.7]} 24.
Bc1 {[%clk 0:00:25.3]} 24... Nf6 {[%clk 0:01:12.9]} 25. Bg5 {[%clk 0:00:23.5]}
25... Qe7 {[%clk 0:01:04.9]} 26. Bxf6 {[%clk 0:00:18.8]} 26... Qxf6 {[%clk
0:00:59.8]} 27. Nxe4 {[%clk 0:00:18.9]} 27... Qe7 {[%clk 0:00:57.6]} 28. h4
{[%clk 0:00:15.7]} 28... Bh6 {[%clk 0:00:55.3]} 29. a3 {[%clk 0:00:12.8]} 29...
Rf7 {[%clk 0:00:55.2]} 30. b4 {[%clk 0:00:10.1]} 30... axb4 {[%clk 0:00:54.3]}
31. axb4 {[%clk 0:00:11]} 31... Ref8 {[%clk 0:00:53.1]} 32. c5 {[%clk
0:00:09.8]} 32... bxc5 {[%clk 0:00:50.8]} 33. bxc5 {[%clk 0:00:10.7]} 33... dxc5
{[%clk 0:00:50.4]} 34. Qc4 {[%clk 0:00:09.6]} 34... Kg7 {[%clk 0:00:49.5]} 35.
Qxc5 {[%clk 0:00:06.5]} 35... Qxc5 {[%clk 0:00:29.4]} 36. Nxc5 {[%clk
0:00:07.4]} 36... Re7 {[%clk 0:00:24.3]} 37. Bh3 {[%clk 0:00:06.4]} 37... Rd8
{[%clk 0:00:19.6]} 38. Ne6+ {[%clk 0:00:06.1]} 38... Bxe6 {[%clk 0:00:17.8]} 39.
dxe6 {[%clk 0:00:07]} 39... Rd2 {[%clk 0:00:16.7]} 40. Rxe5 {[%clk 0:00:06.7]}
40... Rxf2+ {[%clk 0:00:15.6]} 41. Rxf2 {[%clk 0:00:06.6]} 1-0